[Event "Titled Tuesday Blitz July 26 Early 2022"]
[White "Nasuta, Grzegorz"]
[Black "Filip, Andrei"]
[WhiteFideId "1141686"]
[BlackFideId "1249452"]
[WhiteElo "2366"]
[BlackElo "1825"]
[Result "1-0"]
[Round "02"]
[TimeControl "180+1"]
[Date "2022.07.27"]
[WhiteClock "0:00:11"]
[BlackClock "0:00:03"]

1. e4 {[%clk 0:03:00]}  e5 {[%clk 0:02:58]} 2. Nf3 {[%clk 0:03:01]}  Nf6 {[%clk 0:02:57]} 3. d4 {[%clk 0:03:00]}  Nxe4 {[%clk 0:02:53]} 4. dxe5 {[%clk 0:03:00]}  d5 {[%clk 0:02:43]} 5. Nbd2 {[%clk 0:02:59]}  Nxd2 {[%clk 0:02:27]} 6. Bxd2 {[%clk 0:02:57]}  Be7 {[%clk 0:02:28]} 7. Bd3 {[%clk 0:02:55]}  Be6 {[%clk 0:02:23]} 8. O-O {[%clk 0:02:54]}  Nd7 {[%clk 0:02:23]} 9. c3 {[%clk 0:02:52]}  c5 {[%clk 0:02:22]} 10. h3 {[%clk 0:02:36]}  a6 {[%clk 0:02:06]} 11. Qe2 {[%clk 0:02:32]}  Nf8 {[%clk 0:02:05]} 12. Nh2 {[%clk 0:02:17]}  Ng6 {[%clk 0:02:05]} 13. f4 {[%clk 0:02:17]}  Qb6 {[%clk 0:01:45]} 14. Be3 {[%clk 0:01:58]}  Bd7 {[%clk 0:01:37]} 15. Kh1 {[%clk 0:01:33]}  O-O {[%clk 0:01:36]} 16. b4 {[%clk 0:01:14]}  Qc7 {[%clk 0:01:27]} 17. bxc5 {[%clk 0:01:09]}  Bxc5 {[%clk 0:01:26]} 18. Bxc5 {[%clk 0:01:05]}  Qxc5 {[%clk 0:01:26]} 19. f5 {[%clk 0:01:06]}  Ne7 {[%clk 0:00:59]} 20. f6 {[%clk 0:00:53]}  Ng6 {[%clk 0:00:59]} 21. Rac1 {[%clk 0:00:16]}  Rae8 {[%clk 0:00:53]} 22. fxg7 {[%clk 0:00:15]}  Kxg7 {[%clk 0:00:53]} 23. Nf3 {[%clk 0:00:15]}  Qc7 {[%clk 0:00:36]} 24. Rfe1 {[%clk 0:00:15]}  Qc8 {[%clk 0:00:29]} 25. Qe3 {[%clk 0:00:08]}  Bf5 {[%clk 0:00:27]} 26. Nd4 {[%clk 0:00:06]}  Bxd3 {[%clk 0:00:24]} 27. Qxd3 {[%clk 0:00:07]}  Nxe5 {[%clk 0:00:18]} 28. Nf5+ {[%clk 0:00:06]}  Kg8 {[%clk 0:00:14]} 29. Qg3+ {[%clk 0:00:06]}  Ng6 {[%clk 0:00:13]} 30. Rxe8 {[%clk 0:00:04]}  Rxe8 {[%clk 0:00:14]} 31. Rf1 {[%clk 0:00:02]}  Rf8 {[%clk 0:00:09]} 32. Nh6+ {[%clk 0:00:02]}  Kg7 {[%clk 0:00:08]} 33. Nf5+ {[%clk 0:00:01]}  Kh8 {[%clk 0:00:09]} 34. Qe3 {[%clk 0:00:02]}  Qe8 {[%clk 0:00:08]} 35. Qd4+ {[%clk 0:00:02]}  Qe5 {[%clk 0:00:08]} 36. Qd3 {[%clk 0:00:03]}  Qe4 {[%clk 0:00:08]} 37. Qxe4 {[%clk 0:00:03]}  dxe4 {[%clk 0:00:08]} 38. Nd6 {[%clk 0:00:04]}  e3 {[%clk 0:00:07]} 39. Re1 {[%clk 0:00:04]}  Rd8 {[%clk 0:00:07]} 40. Nf5 {[%clk 0:00:05]}  e2 {[%clk 0:00:06]} 41. Rxe2 {[%clk 0:00:05]}  Nf4 {[%clk 0:00:06]} 42. Re4 {[%clk 0:00:05]}  Ne6 {[%clk 0:00:06]} 43. Rc4 {[%clk 0:00:05]}  h5 {[%clk 0:00:06]} 44. Kh2 {[%clk 0:00:05]}  Rd2 {[%clk 0:00:05]} 45. Ne3 {[%clk 0:00:05]}  Re2 {[%clk 0:00:04]} 46. Nd5 {[%clk 0:00:05]}  Rf2 {[%clk 0:00:04]} 47. Rh4 {[%clk 0:00:05]}  Ng7 {[%clk 0:00:03]} 48. Re4 {[%clk 0:00:05]}  b5 {[%clk 0:00:04]} 49. Re7 {[%clk 0:00:05]}  Kh7 {[%clk 0:00:04]} 50. Rb7 {[%clk 0:00:04]}  Rxa2 {[%clk 0:00:04]} 51. Rxf7 {[%clk 0:00:04]}  Rc2 {[%clk 0:00:04]} 52. Nf4 {[%clk 0:00:04]}  a5 {[%clk 0:00:04]} 53. Nxh5 {[%clk 0:00:04]}  Kh6 {[%clk 0:00:04]} 54. Nxg7 {[%clk 0:00:03]}  a4 {[%clk 0:00:05]} 55. Ra7 {[%clk 0:00:04]}  Rxc3 {[%clk 0:00:04]} 56. Nf5+ {[%clk 0:00:04]}  Kg6 {[%clk 0:00:04]} 57. Nd4 {[%clk 0:00:05]}  Rc5 {[%clk 0:00:02]} 58. Nxb5 {[%clk 0:00:05]}  Rxb5 {[%clk 0:00:03]} 59. Rxa4 {[%clk 0:00:06]}  Rb3 {[%clk 0:00:03]} 60. Rf4 {[%clk 0:00:06]}  Kh6 {[%clk 0:00:04]} 61. h4 {[%clk 0:00:06]}  Kh5 {[%clk 0:00:04]} 62. g3 {[%clk 0:00:06]}  Rc3 {[%clk 0:00:05]} 63. Kh3 {[%clk 0:00:07]}  Rc1 {[%clk 0:00:06]} 64. Rf5+ {[%clk 0:00:08]}  Kh6 {[%clk 0:00:06]} 65. Re5 {[%clk 0:00:07]}  Rh1+ {[%clk 0:00:06]} 66. Kg4 {[%clk 0:00:07]}  Rb1 {[%clk 0:00:07]} 67. h5 {[%clk 0:00:08]}  Rb4+ {[%clk 0:00:07]} 68. Kh3 {[%clk 0:00:08]}  Rc4 {[%clk 0:00:07]} 69. g4 {[%clk 0:00:08]}  Rc1 {[%clk 0:00:07]} 70. Re6+ {[%clk 0:00:08]}  Kg5 {[%clk 0:00:07]} 71. Re5+ {[%clk 0:00:08]}  Kf4 {[%clk 0:00:07]} 72. Rf5+ {[%clk 0:00:08]}  Ke4 {[%clk 0:00:07]} 73. Kh4 {[%clk 0:00:09]}  Rh1+ {[%clk 0:00:05]} 74. Kg5 {[%clk 0:00:09]}  Rc1 {[%clk 0:00:06]} 75. h6 {[%clk 0:00:10]}  Rc8 {[%clk 0:00:06]} 76. h7 {[%clk 0:00:10]}  Rh8 {[%clk 0:00:05]} 77. Kg6 {[%clk 0:00:10]}  Re8 {[%clk 0:00:03]} 78. Kg7 {[%clk 0:00:10]}  Re7+ {[%clk 0:00:03]} 79. Rf7 {[%clk 0:00:11]} 1-0


[Site "https://www.chess.com"]

[Event "Titled Tuesday Blitz July 26 Early 2022"]
[White "Navarrete Mendez, Gonzalo Alberto"]
[Black "Sarana, Alexey"]
[WhiteFideId "5106850"]
[BlackFideId "24133795"]
[WhiteElo "2261"]
[BlackElo "2666"]
[Result "0-1"]
[Round "02"]
[TimeControl "180+1"]
[Date "2022.07.26"]
[WhiteClock "0:00:06"]
[BlackClock "0:00:02"]

1. e4 {[%clk 0:02:54]}  c5 {[%clk 0:03:00]} 2. Nf3 {[%clk 0:02:53]}  d6 {[%clk 0:03:00]} 3. Nc3 {[%clk 0:02:50]}  Nf6 {[%clk 0:02:59]} 4. Bc4 {[%clk 0:02:50]}  e6 {[%clk 0:02:58]} 5. d4 {[%clk 0:02:50]}  cxd4 {[%clk 0:02:58]} 6. Nxd4 {[%clk 0:02:51]}  a6 {[%clk 0:02:57]} 7. Bb3 {[%clk 0:02:51]}  Nbd7 {[%clk 0:02:55]} 8. Bg5 {[%clk 0:02:50]}  Nc5 {[%clk 0:02:54]} 9. Qe2 {[%clk 0:02:50]}  Qc7 {[%clk 0:02:49]} 10. f4 {[%clk 0:02:44]}  b5 {[%clk 0:02:46]} 11. Bxf6 {[%clk 0:02:37]}  gxf6 {[%clk 0:02:46]} 12. f5 {[%clk 0:02:12]}  Nxb3 {[%clk 0:02:13]} 13. axb3 {[%clk 0:02:08]}  b4 {[%clk 0:02:13]} 14. Na4 {[%clk 0:01:59]}  e5 {[%clk 0:01:56]} 15. Nf3 {[%clk 0:01:52]}  Bb7 {[%clk 0:01:48]} 16. O-O-O {[%clk 0:01:49]}  Qc6 {[%clk 0:01:45]} 17. Rhe1 {[%clk 0:01:44]}  Qb5 {[%clk 0:01:19]} 18. Qf2 {[%clk 0:01:36]}  Rc8 {[%clk 0:01:04]} 19. Kb1 {[%clk 0:01:35]}  Rc7 {[%clk 0:00:52]} 20. Qh4 {[%clk 0:01:35]}  Be7 {[%clk 0:00:52]} 21. Nd2 {[%clk 0:01:13]}  h5 {[%clk 0:00:46]} 22. Nf1 {[%clk 0:00:51]}  d5 {[%clk 0:00:24]} 23. exd5 {[%clk 0:00:43]}  Bxd5 {[%clk 0:00:25]} 24. Ne3 {[%clk 0:00:43]}  Bb7 {[%clk 0:00:26]} 25. Nc4 {[%clk 0:00:41]}  Rd7 {[%clk 0:00:19]} 26. Rxd7 {[%clk 0:00:40]}  Qxd7 {[%clk 0:00:19]} 27. Nab6 {[%clk 0:00:36]}  Qd8 {[%clk 0:00:18]} 28. Qf2 {[%clk 0:00:19]}  Kf8 {[%clk 0:00:18]} 29. h3 {[%clk 0:00:14]}  h4 {[%clk 0:00:18]} 30. g3 {[%clk 0:00:14]}  hxg3 {[%clk 0:00:16]} 31. Qxg3 {[%clk 0:00:15]}  Bc5 {[%clk 0:00:15]} 32. h4 {[%clk 0:00:10]}  Bxb6 {[%clk 0:00:14]} 33. Qg4 {[%clk 0:00:09]}  Qd4 {[%clk 0:00:14]} 34. Qe2 {[%clk 0:00:07]}  Bc5 {[%clk 0:00:09]} 35. Rd1 {[%clk 0:00:08]}  Qxh4 {[%clk 0:00:10]} 36. Rd8+ {[%clk 0:00:07]}  Kg7 {[%clk 0:00:10]} 37. Rd7 {[%clk 0:00:07]}  Bc6 {[%clk 0:00:09]} 38. Rc7 {[%clk 0:00:07]}  Qh1+ {[%clk 0:00:06]} 39. Ka2 {[%clk 0:00:07]}  Rh4 {[%clk 0:00:06]} 40. Nxe5 {[%clk 0:00:07]}  Bd5 {[%clk 0:00:04]} 41. Rxc5 {[%clk 0:00:07]}  Rf4 {[%clk 0:00:02]} 42. Nd7 {[%clk 0:00:06]}  Rf1 {[%clk 0:00:02]} 0-1


[Site "https://www.chess.com"]

[Event "Titled Tuesday Blitz July 26 Early 2022"]
[White "Odegov, Artem"]
[Black "Zarubitski, Viachaslau"]
[WhiteFideId "34183644"]
[BlackFideId "13509373"]
[WhiteElo "2286"]
[BlackElo "2325"]
[Result "1-0"]
[Round "02"]
[TimeControl "180+1"]
[Date "2022.07.27"]
[WhiteClock "0:00:03"]
[BlackClock "0:00:06"]

1. d4 {[%clk 0:03:00]}  Nf6 {[%clk 0:02:54]} 2. c4 {[%clk 0:03:00]}  d6 {[%clk 0:02:55]} 3. Nc3 {[%clk 0:03:00]}  e5 {[%clk 0:02:54]} 4. dxe5 {[%clk 0:03:00]}  dxe5 {[%clk 0:02:55]} 5. Qxd8+ {[%clk 0:03:00]}  Kxd8 {[%clk 0:02:56]} 6. Bg5 {[%clk 0:03:00]}  Nd7 {[%clk 0:02:56]} 7. O-O-O {[%clk 0:03:01]}  c6 {[%clk 0:02:56]} 8. e3 {[%clk 0:02:59]}  Bb4 {[%clk 0:02:52]} 9. Nf3 {[%clk 0:02:56]}  Ke7 {[%clk 0:02:49]} 10. Be2 {[%clk 0:02:51]}  h6 {[%clk 0:02:47]} 11. Bh4 {[%clk 0:02:49]}  Bxc3 {[%clk 0:02:43]} 12. bxc3 {[%clk 0:02:49]}  g5 {[%clk 0:02:43]} 13. Bg3 {[%clk 0:02:49]}  Ne4 {[%clk 0:02:44]} 14. Kc2 {[%clk 0:02:42]}  f6 {[%clk 0:02:39]} 15. Nd2 {[%clk 0:02:25]}  Nxd2 {[%clk 0:02:10]} 16. Rxd2 {[%clk 0:02:26]}  Nc5 {[%clk 0:02:10]} 17. f3 {[%clk 0:02:26]}  Be6 {[%clk 0:01:54]} 18. e4 {[%clk 0:02:24]}  Rhd8 {[%clk 0:01:51]} 19. Rhd1 {[%clk 0:02:22]}  Rxd2+ {[%clk 0:01:46]} 20. Rxd2 {[%clk 0:02:23]}  Na4 {[%clk 0:01:45]} 21. Bf2 {[%clk 0:02:20]}  Nb6 {[%clk 0:01:46]} 22. Bc5+ {[%clk 0:02:07]}  Kf7 {[%clk 0:01:46]} 23. Rd6 {[%clk 0:01:36]}  h5 {[%clk 0:01:17]} 24. f4 {[%clk 0:01:12]}  g4 {[%clk 0:01:15]} 25. f5 {[%clk 0:01:10]}  Bc8 {[%clk 0:01:08]} 26. Be3 {[%clk 0:01:02]}  Ke7 {[%clk 0:01:00]} 27. c5 {[%clk 0:00:59]}  Nd7 {[%clk 0:00:57]} 28. Bc4 {[%clk 0:01:00]}  Nf8 {[%clk 0:00:53]} 29. Bh6 {[%clk 0:00:58]}  Bd7 {[%clk 0:00:53]} 30. Kd3 {[%clk 0:00:29]}  b6 {[%clk 0:00:42]} 31. Be3 {[%clk 0:00:27]}  b5 {[%clk 0:00:42]} 32. Bb3 {[%clk 0:00:26]}  Nh7 {[%clk 0:00:34]} 33. a3 {[%clk 0:00:25]}  a6 {[%clk 0:00:31]} 34. Ke2 {[%clk 0:00:20]}  Nf8 {[%clk 0:00:19]} 35. Kf2 {[%clk 0:00:20]}  Be8 {[%clk 0:00:19]} 36. Bh6 {[%clk 0:00:16]}  Bd7 {[%clk 0:00:15]} 37. Kg3 {[%clk 0:00:15]}  Nh7 {[%clk 0:00:08]} 38. Kh4 {[%clk 0:00:14]}  Rh8 {[%clk 0:00:09]} 39. Be6 {[%clk 0:00:06]}  Be8 {[%clk 0:00:06]} 40. Bb3 {[%clk 0:00:03]} 1-0


[Site "https://www.chess.com"]

[Event "Titled Tuesday Blitz July 26 Early 2022"]
[White "Ohanyan, Emin"]
[Black "Janaszak, Dawid"]
[WhiteFideId "13312022"]
[BlackFideId "1119206"]
[WhiteElo "1927"]
[BlackElo "2199"]
[Result "1-0"]
[Round "02"]
[TimeControl "180+1"]
[Date "2022.07.26"]
[WhiteClock "0:00:32"]
[BlackClock "0:00:20"]

1. e4 {[%clk 0:02:52]}  c5 {[%clk 0:02:59]} 2. Nf3 {[%clk 0:02:49]}  Nc6 {[%clk 0:02:59]} 3. d4 {[%clk 0:02:49]}  cxd4 {[%clk 0:03:00]} 4. Nxd4 {[%clk 0:02:50]}  g6 {[%clk 0:03:00]} 5. Nc3 {[%clk 0:02:42]}  Bg7 {[%clk 0:03:00]} 6. Be3 {[%clk 0:02:42]}  Nf6 {[%clk 0:03:00]} 7. Nxc6 {[%clk 0:02:42]}  bxc6 {[%clk 0:03:00]} 8. e5 {[%clk 0:02:42]}  Ng8 {[%clk 0:03:01]} 9. Bd4 {[%clk 0:02:41]}  Qa5 {[%clk 0:03:00]} 10. Bc4 {[%clk 0:02:41]}  Bxe5 {[%clk 0:02:35]} 11. O-O {[%clk 0:02:39]}  Nf6 {[%clk 0:02:32]} 12. Re1 {[%clk 0:02:38]}  d6 {[%clk 0:02:24]} 13. Bxe5 {[%clk 0:02:38]}  dxe5 {[%clk 0:02:24]} 14. Qe2 {[%clk 0:02:39]}  O-O {[%clk 0:02:21]} 15. Qxe5 {[%clk 0:02:39]}  Qxe5 {[%clk 0:02:22]} 16. Rxe5 {[%clk 0:02:40]}  e6 {[%clk 0:02:21]} 17. Ra5 {[%clk 0:02:20]}  Rd8 {[%clk 0:02:16]} 18. Kf1 {[%clk 0:02:12]}  Kf8 {[%clk 0:02:14]} 19. Ke1 {[%clk 0:02:01]}  Ke7 {[%clk 0:02:14]} 20. Bd3 {[%clk 0:01:55]}  Rd4 {[%clk 0:02:06]} 21. Rd1 {[%clk 0:01:50]}  Nd5 {[%clk 0:02:00]} 22. Ne2 {[%clk 0:01:45]}  Rb4 {[%clk 0:01:51]} 23. b3 {[%clk 0:01:42]}  Rg4 {[%clk 0:01:29]} 24. g3 {[%clk 0:01:24]}  Rb4 {[%clk 0:01:26]} 25. a3 {[%clk 0:01:22]}  Rbb8 {[%clk 0:01:21]} 26. c4 {[%clk 0:01:16]}  Nf6 {[%clk 0:01:14]} 27. b4 {[%clk 0:01:15]}  a6 {[%clk 0:01:12]} 28. Nd4 {[%clk 0:01:12]}  Bb7 {[%clk 0:01:07]} 29. Nb3 {[%clk 0:01:11]}  Nd7 {[%clk 0:01:04]} 30. Nc5 {[%clk 0:01:02]}  Bc8 {[%clk 0:01:01]} 31. Nxd7 {[%clk 0:01:01]}  Bxd7 {[%clk 0:01:00]} 32. c5 {[%clk 0:01:01]}  Bc8 {[%clk 0:00:58]} 33. Be4 {[%clk 0:01:01]}  Ra7 {[%clk 0:00:53]} 34. Rd6 {[%clk 0:01:01]}  Rb5 {[%clk 0:00:50]} 35. Rxc6 {[%clk 0:00:51]}  Rxa5 {[%clk 0:00:49]} 36. bxa5 {[%clk 0:00:52]}  Kd8 {[%clk 0:00:46]} 37. Bd3 {[%clk 0:00:46]}  Bb7 {[%clk 0:00:43]} 38. Rb6 {[%clk 0:00:45]}  Kc7 {[%clk 0:00:44]} 39. Kd2 {[%clk 0:00:44]}  e5 {[%clk 0:00:38]} 40. Rf6 {[%clk 0:00:43]}  Bd5 {[%clk 0:00:37]} 41. Bxa6 {[%clk 0:00:42]}  Be6 {[%clk 0:00:36]} 42. Bb5 {[%clk 0:00:42]}  Rxa5 {[%clk 0:00:36]} 43. a4 {[%clk 0:00:43]}  Ra8 {[%clk 0:00:33]} 44. Kc3 {[%clk 0:00:42]}  Rd8 {[%clk 0:00:31]} 45. Bc4 {[%clk 0:00:42]}  Rd4 {[%clk 0:00:23]} 46. Bxe6 {[%clk 0:00:40]}  fxe6 {[%clk 0:00:23]} 47. a5 {[%clk 0:00:32]}  Ra4 {[%clk 0:00:23]} 48. Rxe6 {[%clk 0:00:32]}  Rxa5 {[%clk 0:00:23]} 49. Kb4 {[%clk 0:00:32]}  Ra1 {[%clk 0:00:23]} 50. Rxe5 {[%clk 0:00:32]}  Ra2 {[%clk 0:00:23]} 51. Re7+ {[%clk 0:00:32]}  Kc6 {[%clk 0:00:23]} 52. Rxh7 {[%clk 0:00:33]}  Rxf2 {[%clk 0:00:23]} 53. Rh6 {[%clk 0:00:33]}  Rf6 {[%clk 0:00:22]} 54. Kc4 {[%clk 0:00:33]}  Re6 {[%clk 0:00:21]} 55. Kd4 {[%clk 0:00:33]}  Rf6 {[%clk 0:00:20]} 56. h4 {[%clk 0:00:34]}  Kb5 {[%clk 0:00:20]} 57. h5 {[%clk 0:00:33]}  Rf3 {[%clk 0:00:19]} 58. Rxg6 {[%clk 0:00:34]}  Rf1 {[%clk 0:00:19]} 59. h6 {[%clk 0:00:34]}  Rd1+ {[%clk 0:00:19]} 60. Ke4 {[%clk 0:00:34]}  Kxc5 {[%clk 0:00:20]} 61. h7 {[%clk 0:00:32]}  Rh1 {[%clk 0:00:19]} 62. Rg7 {[%clk 0:00:31]}  Kd6 {[%clk 0:00:20]} 63. Kf5 {[%clk 0:00:31]}  Rh3 {[%clk 0:00:19]} 64. g4 {[%clk 0:00:32]}  Rf3+ {[%clk 0:00:19]} 65. Kg6 {[%clk 0:00:32]}  Rh3 {[%clk 0:00:20]} 66. Rg8 {[%clk 0:00:32]} 1-0


[Site "https://www.chess.com"]

[Event "Titled Tuesday Blitz July 26 Early 2022"]
[White "Pap, Gyula"]
[Black "Dounis, Alexandros"]
[WhiteFideId "725323"]
[BlackFideId "4213238"]
[WhiteElo "2553"]
[BlackElo "2204"]
[Result "1-0"]
[Round "02"]
[TimeControl "180+1"]
[Date "2022.07.26"]
[WhiteClock "0:00:40"]
[BlackClock "0:00:46"]

1. d4 {[%clk 0:03:00]}  Nf6 {[%clk 0:02:59]} 2. c4 {[%clk 0:03:01]}  g6 {[%clk 0:02:59]} 3. Nc3 {[%clk 0:03:01]}  d5 {[%clk 0:03:00]} 4. Nf3 {[%clk 0:03:01]}  Bg7 {[%clk 0:03:00]} 5. Bf4 {[%clk 0:03:01]}  O-O {[%clk 0:02:59]} 6. Rc1 {[%clk 0:03:01]}  dxc4 {[%clk 0:02:57]} 7. e4 {[%clk 0:03:01]}  Bg4 {[%clk 0:02:52]} 8. Bxc4 {[%clk 0:02:59]}  Nc6 {[%clk 0:02:52]} 9. d5 {[%clk 0:02:51]}  Bxf3 {[%clk 0:02:50]} 10. gxf3 {[%clk 0:02:33]}  Nb8 {[%clk 0:02:48]} 11. O-O {[%clk 0:02:29]}  Nbd7 {[%clk 0:02:45]} 12. Be2 {[%clk 0:02:06]}  Nh5 {[%clk 0:02:32]} 13. Be3 {[%clk 0:02:06]}  e5 {[%clk 0:02:24]} 14. Nb5 {[%clk 0:01:35]}  Rc8 {[%clk 0:01:57]} 15. Nxa7 {[%clk 0:01:29]}  Ra8 {[%clk 0:01:56]} 16. Nb5 {[%clk 0:01:29]}  Rxa2 {[%clk 0:01:55]} 17. Qb3 {[%clk 0:01:18]}  Ra6 {[%clk 0:01:45]} 18. Nxc7 {[%clk 0:01:14]}  Rf6 {[%clk 0:01:43]} 19. Ne6 {[%clk 0:00:59]}  fxe6 {[%clk 0:01:35]} 20. dxe6 {[%clk 0:01:00]}  Kh8 {[%clk 0:01:29]} 21. Rfd1 {[%clk 0:01:00]}  Rf4 {[%clk 0:01:21]} 22. exd7 {[%clk 0:00:48]}  Qg5+ {[%clk 0:00:51]} 23. Kh1 {[%clk 0:00:48]}  Qh4 {[%clk 0:00:46]} 24. Rc8 {[%clk 0:00:40]} 1-0


[Site "https://www.chess.com"]

[Event "Titled Tuesday Blitz July 26 Early 2022"]
[White "Paravyan, David"]
[Black "Al-Tarboush, Ward"]
[WhiteFideId "4194985"]
[BlackFideId "7601450"]
[WhiteElo "2569"]
[BlackElo "2231"]
[Result "1-0"]
[Round "02"]
[TimeControl "180+1"]
[Date "2022.07.26"]
[WhiteClock "0:00:52"]
[BlackClock "0:00:08"]

1. e4 {[%clk 0:02:59]}  e6 {[%clk 0:02:59]} 2. d4 {[%clk 0:02:59]}  d5 {[%clk 0:02:59]} 3. Nc3 {[%clk 0:02:59]}  Nf6 {[%clk 0:02:59]} 4. Bg5 {[%clk 0:02:59]}  dxe4 {[%clk 0:02:58]} 5. Nxe4 {[%clk 0:02:59]}  Be7 {[%clk 0:02:58]} 6. Nxf6+ {[%clk 0:02:59]}  Bxf6 {[%clk 0:02:58]} 7. Bxf6 {[%clk 0:03:00]}  Qxf6 {[%clk 0:02:59]} 8. Nf3 {[%clk 0:02:48]}  c5 {[%clk 0:02:55]} 9. Bb5+ {[%clk 0:02:48]}  Bd7 {[%clk 0:02:54]} 10. Qe2 {[%clk 0:02:48]}  O-O {[%clk 0:02:48]} 11. O-O-O {[%clk 0:02:47]}  a6 {[%clk 0:02:41]} 12. Bd3 {[%clk 0:02:19]}  cxd4 {[%clk 0:02:33]} 13. Qe4 {[%clk 0:02:08]}  g6 {[%clk 0:02:27]} 14. Qxd4 {[%clk 0:01:59]}  Qxd4 {[%clk 0:02:25]} 15. Nxd4 {[%clk 0:02:00]}  Nc6 {[%clk 0:02:25]} 16. Be4 {[%clk 0:01:55]}  Rac8 {[%clk 0:01:54]} 17. Nb3 {[%clk 0:01:55]}  Rc7 {[%clk 0:01:42]} 18. c3 {[%clk 0:01:50]}  e5 {[%clk 0:01:34]} 19. Rd6 {[%clk 0:01:48]}  Be6 {[%clk 0:01:15]} 20. Nc5 {[%clk 0:01:44]}  Bxa2 {[%clk 0:01:08]} 21. Bxc6 {[%clk 0:01:44]}  Rxc6 {[%clk 0:00:55]} 22. Rxc6 {[%clk 0:01:44]}  bxc6 {[%clk 0:00:56]} 23. b3 {[%clk 0:01:44]}  Rb8 {[%clk 0:00:57]} 24. Kb2 {[%clk 0:01:42]}  Rb5 {[%clk 0:00:57]} 25. b4 {[%clk 0:01:12]}  Bd5 {[%clk 0:00:55]} 26. Ra1 {[%clk 0:01:13]}  Bxg2 {[%clk 0:00:54]} 27. Rxa6 {[%clk 0:01:13]}  Rb8 {[%clk 0:00:51]} 28. Nd7 {[%clk 0:01:10]}  Rd8 {[%clk 0:00:45]} 29. Nxe5 {[%clk 0:01:11]}  Rd2+ {[%clk 0:00:45]} 30. Ka3 {[%clk 0:01:04]}  Rxf2 {[%clk 0:00:44]} 31. Nxc6 {[%clk 0:01:03]}  Re2 {[%clk 0:00:35]} 32. b5 {[%clk 0:01:02]}  f5 {[%clk 0:00:32]} 33. Nd4 {[%clk 0:00:56]}  Re3 {[%clk 0:00:30]} 34. Kb4 {[%clk 0:00:57]}  f4 {[%clk 0:00:29]} 35. b6 {[%clk 0:00:57]}  Re1 {[%clk 0:00:28]} 36. Kc5 {[%clk 0:00:56]}  Rb1 {[%clk 0:00:26]} 37. c4 {[%clk 0:00:53]}  f3 {[%clk 0:00:26]} 38. Ra2 {[%clk 0:00:53]}  Kf7 {[%clk 0:00:11]} 39. Nb5 {[%clk 0:00:54]}  Re1 {[%clk 0:00:07]} 40. b7 {[%clk 0:00:53]}  Re5+ {[%clk 0:00:07]} 41. Kd4 {[%clk 0:00:52]}  Re8 {[%clk 0:00:08]} 42. Nd6+ {[%clk 0:00:52]} 1-0


[Site "https://www.chess.com"]

[Event "Titled Tuesday Blitz July 26 Early 2022"]
[White "Sammed Jaykumar, Shete"]
[Black "Itkis, Boris"]
[WhiteFideId "5073421"]
[BlackFideId "1209167"]
[WhiteElo "2239"]
[BlackElo "2207"]
[Result "1-0"]
[Round "02"]
[TimeControl "180+1"]
[Date "2022.07.27"]
[WhiteClock "0:00:05"]
[BlackClock "0:00:04"]

1. Nf3 {[%clk 0:02:20]}  d5 {[%clk 0:02:57]} 2. c4 {[%clk 0:02:21]}  d4 {[%clk 0:02:56]} 3. e3 {[%clk 0:02:20]}  Nc6 {[%clk 0:02:55]} 4. exd4 {[%clk 0:02:17]}  Nxd4 {[%clk 0:02:56]} 5. Nc3 {[%clk 0:02:17]}  Bg4 {[%clk 0:02:42]} 6. Be2 {[%clk 0:02:16]}  Nxe2 {[%clk 0:02:39]} 7. Qxe2 {[%clk 0:02:17]}  e6 {[%clk 0:02:37]} 8. O-O {[%clk 0:02:14]}  Nf6 {[%clk 0:02:36]} 9. d4 {[%clk 0:02:06]}  Be7 {[%clk 0:02:26]} 10. h3 {[%clk 0:02:05]}  Bxf3 {[%clk 0:02:20]} 11. Qxf3 {[%clk 0:02:04]}  Qxd4 {[%clk 0:02:20]} 12. Qxb7 {[%clk 0:02:03]}  O-O {[%clk 0:02:18]} 13. Qxc7 {[%clk 0:02:00]}  Bd6 {[%clk 0:02:14]} 14. Qa5 {[%clk 0:01:53]}  Qxc4 {[%clk 0:02:03]} 15. Be3 {[%clk 0:01:52]}  Bb4 {[%clk 0:01:33]} 16. Qa4 {[%clk 0:01:51]}  Rfc8 {[%clk 0:01:33]} 17. Rac1 {[%clk 0:01:35]}  Bxc3 {[%clk 0:01:31]} 18. Qxc4 {[%clk 0:01:36]}  Rxc4 {[%clk 0:01:31]} 19. Rxc3 {[%clk 0:01:36]}  Rxc3 {[%clk 0:01:25]} 20. bxc3 {[%clk 0:01:37]}  Nd5 {[%clk 0:01:25]} 21. Bd4 {[%clk 0:01:31]}  f6 {[%clk 0:01:21]} 22. c4 {[%clk 0:01:29]}  Nf4 {[%clk 0:01:09]} 23. Be3 {[%clk 0:01:24]}  e5 {[%clk 0:00:57]} 24. Rd1 {[%clk 0:00:39]}  Rc8 {[%clk 0:00:55]} 25. c5 {[%clk 0:00:40]}  Rc7 {[%clk 0:00:53]} 26. Rd6 {[%clk 0:00:37]}  Kf7 {[%clk 0:00:51]} 27. c6 {[%clk 0:00:31]}  Ne6 {[%clk 0:00:44]} 28. Bd2 {[%clk 0:00:19]}  Nd4 {[%clk 0:00:43]} 29. Ba5 {[%clk 0:00:15]}  Rxc6 {[%clk 0:00:24]} 30. Rd7+ {[%clk 0:00:14]}  Kg6 {[%clk 0:00:20]} 31. Rxa7 {[%clk 0:00:14]}  Rc1+ {[%clk 0:00:20]} 32. Kh2 {[%clk 0:00:15]}  Rc2 {[%clk 0:00:21]} 33. Be1 {[%clk 0:00:09]}  Re2 {[%clk 0:00:18]} 34. Bb4 {[%clk 0:00:09]}  Rxf2 {[%clk 0:00:16]} 35. Bc5 {[%clk 0:00:07]}  Rd2 {[%clk 0:00:13]} 36. a4 {[%clk 0:00:06]}  Nb3 {[%clk 0:00:11]} 37. Bf8 {[%clk 0:00:06]}  e4 {[%clk 0:00:10]} 38. Rxg7+ {[%clk 0:00:05]}  Kf5 {[%clk 0:00:10]} 39. Re7 {[%clk 0:00:05]}  Nc5 {[%clk 0:00:08]} 40. Bh6 {[%clk 0:00:04]}  Ra2 {[%clk 0:00:06]} 41. h4 {[%clk 0:00:02]}  Rxa4 {[%clk 0:00:03]} 42. Kh3 {[%clk 0:00:02]}  Ne6 {[%clk 0:00:03]} 43. g4+ {[%clk 0:00:02]}  Ke5 {[%clk 0:00:02]} 44. h5 {[%clk 0:00:03]}  Ra3+ {[%clk 0:00:02]} 45. Kh4 {[%clk 0:00:04]}  e3 {[%clk 0:00:03]} 46. Bxe3 {[%clk 0:00:02]}  Rxe3 {[%clk 0:00:03]} 47. Rxh7 {[%clk 0:00:03]}  Nf4 {[%clk 0:00:02]} 48. Re7+ {[%clk 0:00:03]}  Ne6 {[%clk 0:00:02]} 49. h6 {[%clk 0:00:03]}  Re1 {[%clk 0:00:03]} 50. Kh5 {[%clk 0:00:04]}  Rh1+ {[%clk 0:00:03]} 51. Kg6 {[%clk 0:00:05]}  Kf4 {[%clk 0:00:03]} 52. Rxe6 {[%clk 0:00:04]}  Kxg4 {[%clk 0:00:04]} 53. Rxf6 {[%clk 0:00:04]}  Rb1 {[%clk 0:00:03]} 54. h7 {[%clk 0:00:04]}  Rb8 {[%clk 0:00:04]} 55. Kg7 {[%clk 0:00:04]}  Kg5 {[%clk 0:00:04]} 56. Rf8 {[%clk 0:00:05]}  Rb7+ {[%clk 0:00:04]} 57. Kg8 {[%clk 0:00:05]}  Kg6 {[%clk 0:00:04]} 58. h8=Q {[%clk 0:00:05]}  Rf7 {[%clk 0:00:04]} 59. Rxf7 {[%clk 0:00:05]} 1-0


[Site "https://www.chess.com"]